[Event "Titled Tuesday Blitz July 25 Early 2023"]
[White "Fiorito, Francisco"]
[Black "Djordjevic, Vuk"]
[WhiteFideId "180165"]
[BlackFideId "902098"]
[WhiteElo "2551"]
[BlackElo "2735"]
[Result "0-1"]
[Round "7"]
[TimeControl "180+2"]
[Date "2023.07.25"]
[WhiteClock "0:00:09"]
[BlackClock "0:00:16"]
[Board "71"]

1. e4 {[%clk 0:03:00]}  d5 {[%clk 0:03:00]} 2. exd5 {[%clk 0:02:57]}  Qxd5 {[%clk 0:03:01]} 3. Nc3 {[%clk 0:02:58]}  Qd6 {[%clk 0:03:02]} 4. d4 {[%clk 0:02:58]}  Nf6 {[%clk 0:03:02]} 5. Bc4 {[%clk 0:02:55]}  c6 {[%clk 0:03:00]} 6. Nf3 {[%clk 0:02:51]}  Be6 {[%clk 0:03:00]} 7. Bd3 {[%clk 0:02:46]}  Nbd7 {[%clk 0:02:59]} 8. O-O {[%clk 0:02:39]}  g6 {[%clk 0:02:59]} 9. Ng5 {[%clk 0:02:38]}  Bf5 {[%clk 0:02:59]} 10. Bxf5 {[%clk 0:02:35]}  gxf5 {[%clk 0:03:00]} 11. Re1 {[%clk 0:02:29]}  h6 {[%clk 0:02:58]} 12. Nh3 {[%clk 0:02:27]}  e6 {[%clk 0:02:53]} 13. Bf4 {[%clk 0:02:26]}  Qb4 {[%clk 0:02:53]} 14. Rb1 {[%clk 0:02:21]}  O-O-O {[%clk 0:02:50]} 15. a3 {[%clk 0:02:20]}  Qc4 {[%clk 0:02:50]} 16. Qd2 {[%clk 0:02:16]}  Rg8 {[%clk 0:02:40]} 17. b3 {[%clk 0:02:13]}  Qa6 {[%clk 0:02:39]} 18. b4 {[%clk 0:02:08]}  Qc4 {[%clk 0:02:36]} 19. b5 {[%clk 0:02:04]}  c5 {[%clk 0:02:37]} 20. b6 {[%clk 0:01:44]}  Nxb6 {[%clk 0:02:10]} 21. Nb5 {[%clk 0:01:41]}  Nbd5 {[%clk 0:02:02]} 22. Nxa7+ {[%clk 0:01:39]}  Kd7 {[%clk 0:02:02]} 23. Rxb7+ {[%clk 0:01:39]}  Ke8 {[%clk 0:02:02]} 24. Nc6 {[%clk 0:01:31]}  Rc8 {[%clk 0:02:02]} 25. Ne5 {[%clk 0:00:49]}  Qa6 {[%clk 0:01:30]} 26. Rxf7 {[%clk 0:00:41]}  Ne4 {[%clk 0:01:30]} 27. Qd3 {[%clk 0:00:35]}  Qxd3 {[%clk 0:01:26]} 28. cxd3 {[%clk 0:00:35]}  Nd6 {[%clk 0:01:24]} 29. Ra7 {[%clk 0:00:29]}  Nb5 {[%clk 0:01:22]} 30. Ra6 {[%clk 0:00:27]}  Nxd4 {[%clk 0:01:20]} 31. Bg3 {[%clk 0:00:18]}  Nc7 {[%clk 0:01:16]} 32. Ra7 {[%clk 0:00:14]}  Bd6 {[%clk 0:01:13]} 33. Nf4 {[%clk 0:00:12]}  Bxe5 {[%clk 0:01:04]} 34. Rxe5 {[%clk 0:00:11]}  Nc6 {[%clk 0:01:05]} 35. Rxc7 {[%clk 0:00:08]}  Rxc7 {[%clk 0:01:03]} 36. Rxc5 {[%clk 0:00:08]}  Kd7 {[%clk 0:00:57]} 37. h4 {[%clk 0:00:05]}  Rcc8 {[%clk 0:00:47]} 38. Nh5 {[%clk 0:00:04]}  Rgd8 {[%clk 0:00:46]} 39. Bf4 {[%clk 0:00:03]}  Ne7 {[%clk 0:00:31]} 40. Rxc8 {[%clk 0:00:02]}  Rxc8 {[%clk 0:00:31]} 41. Bxh6 {[%clk 0:00:03]}  Rh8 {[%clk 0:00:26]} 42. Nf6+ {[%clk 0:00:03]}  Kd6 {[%clk 0:00:26]} 43. Bg5 {[%clk 0:00:04]}  Ng6 {[%clk 0:00:22]} 44. g3 {[%clk 0:00:04]}  e5 {[%clk 0:00:22]} 45. Kg2 {[%clk 0:00:03]}  Ke6 {[%clk 0:00:23]} 46. a4 {[%clk 0:00:03]}  Ra8 {[%clk 0:00:22]} 47. h5 {[%clk 0:00:03]}  Ne7 {[%clk 0:00:21]} 48. h6 {[%clk 0:00:03]}  Rxa4 {[%clk 0:00:21]} 49. h7 {[%clk 0:00:04]}  Ra8 {[%clk 0:00:17]} 50. Ng8 {[%clk 0:00:03]}  Ng6 {[%clk 0:00:18]} 51. Bf6 {[%clk 0:00:02]}  Ra7 {[%clk 0:00:15]} 52. h8=Q {[%clk 0:00:02]}  Nxh8 {[%clk 0:00:16]} 53. Bxh8 {[%clk 0:00:03]}  Ra8 {[%clk 0:00:16]} 54. Bxe5 {[%clk 0:00:03]}  Kxe5 {[%clk 0:00:16]} 55. Nh6 {[%clk 0:00:03]}  Ra6 {[%clk 0:00:12]} 56. Nf7+ {[%clk 0:00:03]}  Kf6 {[%clk 0:00:13]} 57. Nh6 {[%clk 0:00:01]}  Kg6 {[%clk 0:00:10]} 58. Ng8 {[%clk 0:00:02]}  Ra7 {[%clk 0:00:10]} 59. f4 {[%clk 0:00:02]}  Rg7 {[%clk 0:00:09]} 60. g4 {[%clk 0:00:01]}  Rxg8 {[%clk 0:00:08]} 61. g5 {[%clk 0:00:02]}  Rd8 {[%clk 0:00:07]} 62. Kf3 {[%clk 0:00:02]}  Rxd3+ {[%clk 0:00:08]} 63. Ke2 {[%clk 0:00:02]}  Rd4 {[%clk 0:00:08]} 64. Ke3 {[%clk 0:00:02]}  Re4+ {[%clk 0:00:09]} 65. Kf3 {[%clk 0:00:03]}  Kh5 {[%clk 0:00:10]} 66. Kg3 {[%clk 0:00:03]}  Re3+ {[%clk 0:00:11]} 67. Kf2 {[%clk 0:00:03]}  Rb3 {[%clk 0:00:11]} 68. Ke2 {[%clk 0:00:04]}  Kg4 {[%clk 0:00:12]} 69. g6 {[%clk 0:00:04]}  Kxf4 {[%clk 0:00:13]} 70. Kf2 {[%clk 0:00:05]}  Rf3+ {[%clk 0:00:13]} 71. Kg2 {[%clk 0:00:04]}  Rg3+ {[%clk 0:00:14]} 72. Kh2 {[%clk 0:00:05]}  Rxg6 {[%clk 0:00:14]} 73. Kh1 {[%clk 0:00:06]}  Kf3 {[%clk 0:00:15]} 74. Kh2 {[%clk 0:00:07]}  f4 {[%clk 0:00:15]} 75. Kh1 {[%clk 0:00:08]}  Kf2 {[%clk 0:00:16]} 76. Kh2 {[%clk 0:00:09]}  Rh6# {[%clk 0:00:16]} 0-1


[Site "https://www.chess.com"]

[Event "Titled Tuesday Blitz July 25 Early 2023"]
[White "Timmermans, Mark"]
[Black "Garakov, Mikhael"]
[WhiteFideId "1026399"]
[BlackFideId "4169034"]
[WhiteElo "2728"]
[BlackElo "2532"]
[Result "1-0"]
[Round "7"]
[TimeControl "180+2"]
[Date "2023.07.25"]
[WhiteClock "0:01:02"]
[BlackClock "0:00:03"]
[Board "73"]

1. b4 {[%clk 0:03:00]}  e5 {[%clk 0:02:53]} 2. Bb2 {[%clk 0:03:00]}  f6 {[%clk 0:02:47]} 3. e4 {[%clk 0:03:00]}  d5 {[%clk 0:02:43]} 4. exd5 {[%clk 0:03:00]}  Bxb4 {[%clk 0:02:42]} 5. Bc4 {[%clk 0:02:55]}  Bd6 {[%clk 0:02:41]} 6. Ne2 {[%clk 0:02:55]}  Ne7 {[%clk 0:02:32]} 7. O-O {[%clk 0:02:53]}  O-O {[%clk 0:02:31]} 8. Nbc3 {[%clk 0:02:51]}  a6 {[%clk 0:02:29]} 9. a4 {[%clk 0:02:51]}  Bg4 {[%clk 0:02:23]} 10. f3 {[%clk 0:02:50]}  Bh5 {[%clk 0:02:22]} 11. d4 {[%clk 0:02:50]}  Nd7 {[%clk 0:02:19]} 12. Ne4 {[%clk 0:02:50]}  Bf7 {[%clk 0:01:59]} 13. Bb3 {[%clk 0:02:43]}  Nf5 {[%clk 0:01:29]} 14. Qd3 {[%clk 0:02:32]}  exd4 {[%clk 0:01:24]} 15. Nxd4 {[%clk 0:02:32]}  Ne5 {[%clk 0:01:20]} 16. Qd2 {[%clk 0:02:25]}  Nxd4 {[%clk 0:01:19]} 17. Qxd4 {[%clk 0:02:25]}  Re8 {[%clk 0:01:16]} 18. Rfd1 {[%clk 0:02:21]}  f5 {[%clk 0:01:12]} 19. Ng3 {[%clk 0:02:20]}  Qg5 {[%clk 0:00:33]} 20. f4 {[%clk 0:01:55]}  Nf3+ {[%clk 0:00:32]} 21. gxf3 {[%clk 0:01:53]}  Bxf4 {[%clk 0:00:33]} 22. Kg2 {[%clk 0:01:35]}  Re2+ {[%clk 0:00:31]} 23. Kf1 {[%clk 0:01:29]}  Re3 {[%clk 0:00:24]} 24. Kf2 {[%clk 0:01:15]}  Rae8 {[%clk 0:00:18]} 25. Re1 {[%clk 0:01:15]}  Rxe1 {[%clk 0:00:15]} 26. Rxe1 {[%clk 0:01:16]}  Rxe1 {[%clk 0:00:15]} 27. Kxe1 {[%clk 0:01:17]}  Bxg3+ {[%clk 0:00:16]} 28. hxg3 {[%clk 0:01:18]}  Qxg3+ {[%clk 0:00:16]} 29. Kd2 {[%clk 0:01:19]}  h5 {[%clk 0:00:15]} 30. d6 {[%clk 0:01:15]}  cxd6 {[%clk 0:00:14]} 31. Bxf7+ {[%clk 0:01:15]}  Kxf7 {[%clk 0:00:14]} 32. Qd5+ {[%clk 0:01:16]}  Kg6 {[%clk 0:00:13]} 33. Qxb7 {[%clk 0:01:14]}  Kh7 {[%clk 0:00:13]} 34. Qd5 {[%clk 0:01:13]}  Qg5+ {[%clk 0:00:12]} 35. Kd3 {[%clk 0:01:10]}  h4 {[%clk 0:00:12]} 36. Qxd6 {[%clk 0:01:04]}  f4 {[%clk 0:00:12]} 37. Be5 {[%clk 0:01:04]}  h3 {[%clk 0:00:08]} 38. Bxf4 {[%clk 0:01:03]}  Qf5+ {[%clk 0:00:08]} 39. Kc3 {[%clk 0:01:03]}  Qa5+ {[%clk 0:00:08]} 40. Kb3 {[%clk 0:01:03]}  Qf5 {[%clk 0:00:05]} 41. Qd3 {[%clk 0:01:01]}  Kg6 {[%clk 0:00:05]} 42. Qxf5+ {[%clk 0:01:01]}  Kxf5 {[%clk 0:00:03]} 43. Bh2 {[%clk 0:01:02]} 1-0


[Site "https://www.chess.com"]

[Event "Titled Tuesday Blitz July 25 Early 2023"]
[White "NikaVolkov"]
[Black "Shapiro, Viktor"]
[BlackFideId "4175700"]
[WhiteElo "2721"]
[BlackElo "2523"]
[Result "1-0"]
[Round "7"]
[TimeControl "180+2"]
[Date "2023.07.25"]
[WhiteClock "0:01:20"]
[BlackClock "0:00:06"]
[Board "74"]

1. d4 {[%clk 0:03:00]}  Nf6 {[%clk 0:03:00]} 2. Nf3 {[%clk 0:03:01]}  c5 {[%clk 0:03:00]} 3. e3 {[%clk 0:03:02]}  e6 {[%clk 0:02:59]} 4. c4 {[%clk 0:03:02]}  cxd4 {[%clk 0:02:54]} 5. exd4 {[%clk 0:03:03]}  d5 {[%clk 0:02:55]} 6. Nc3 {[%clk 0:03:04]}  Nc6 {[%clk 0:02:55]} 7. Be2 {[%clk 0:03:05]}  Be7 {[%clk 0:02:50]} 8. O-O {[%clk 0:03:05]}  O-O {[%clk 0:02:50]} 9. Be3 {[%clk 0:03:06]}  a6 {[%clk 0:02:50]} 10. Rc1 {[%clk 0:03:06]}  dxc4 {[%clk 0:02:50]} 11. Bxc4 {[%clk 0:03:07]}  b5 {[%clk 0:02:50]} 12. Bd3 {[%clk 0:03:08]}  Bb7 {[%clk 0:02:51]} 13. Qe2 {[%clk 0:03:08]}  Rc8 {[%clk 0:02:48]} 14. a3 {[%clk 0:03:08]}  Na5 {[%clk 0:02:47]} 15. Rfd1 {[%clk 0:03:08]}  Nc4 {[%clk 0:02:47]} 16. Bb1 {[%clk 0:03:09]}  Nd5 {[%clk 0:02:45]} 17. Ne5 {[%clk 0:03:07]}  Ndxe3 {[%clk 0:02:40]} 18. fxe3 {[%clk 0:03:07]}  Nxe5 {[%clk 0:02:41]} 19. dxe5 {[%clk 0:03:08]}  Qb6 {[%clk 0:02:40]} 20. Ne4 {[%clk 0:03:04]}  Rxc1 {[%clk 0:02:29]} 21. Rxc1 {[%clk 0:03:05]}  Rd8 {[%clk 0:02:29]} 22. b4 {[%clk 0:02:57]}  Bxe4 {[%clk 0:02:16]} 23. Bxe4 {[%clk 0:02:56]}  Bg5 {[%clk 0:02:17]} 24. Kf2 {[%clk 0:02:55]}  g6 {[%clk 0:02:11]} 25. g3 {[%clk 0:02:54]}  a5 {[%clk 0:02:04]} 26. h4 {[%clk 0:02:52]}  Be7 {[%clk 0:02:03]} 27. Rc6 {[%clk 0:02:50]}  Qb8 {[%clk 0:02:03]} 28. Qb2 {[%clk 0:02:45]}  axb4 {[%clk 0:02:03]} 29. axb4 {[%clk 0:02:46]}  Bf8 {[%clk 0:01:57]} 30. Qc3 {[%clk 0:02:42]}  Bg7 {[%clk 0:01:56]} 31. Rc5 {[%clk 0:02:42]}  Qa7 {[%clk 0:01:03]} 32. Rxb5 {[%clk 0:01:47]}  Qa2+ {[%clk 0:01:03]} 33. Bc2 {[%clk 0:01:48]}  h5 {[%clk 0:00:46]} 34. Ra5 {[%clk 0:01:47]}  Bxe5 {[%clk 0:00:35]} 35. Rxe5 {[%clk 0:01:47]}  Qa8 {[%clk 0:00:25]} 36. Be4 {[%clk 0:01:40]}  Qb8 {[%clk 0:00:25]} 37. b5 {[%clk 0:01:37]}  Rc8 {[%clk 0:00:18]} 38. Rc5 {[%clk 0:01:37]}  Rd8 {[%clk 0:00:16]} 39. Bd3 {[%clk 0:01:37]}  Qa7 {[%clk 0:00:14]} 40. Rc7 {[%clk 0:01:33]}  Qa2+ {[%clk 0:00:14]} 41. Be2 {[%clk 0:01:32]}  Qd5 {[%clk 0:00:10]} 42. Rc8 {[%clk 0:01:21]}  Rxc8 {[%clk 0:00:09]} 43. Qxc8+ {[%clk 0:01:22]}  Kh7 {[%clk 0:00:10]} 44. Qc6 {[%clk 0:01:22]}  Qf5+ {[%clk 0:00:09]} 45. Bf3 {[%clk 0:01:22]}  Qb1 {[%clk 0:00:09]} 46. b6 {[%clk 0:01:22]}  Qb2+ {[%clk 0:00:09]} 47. Be2 {[%clk 0:01:22]}  g5 {[%clk 0:00:09]} 48. hxg5 {[%clk 0:01:22]}  Kg6 {[%clk 0:00:09]} 49. b7 {[%clk 0:01:20]}  Kxg5 {[%clk 0:00:06]} 50. Qc7 {[%clk 0:01:20]} 1-0


[Site "https://www.chess.com"]

[Event "Titled Tuesday Blitz July 25 Early 2023"]
[White "Weetik, Vjacheslav"]
[Black "Sreyas Payyappat"]
[WhiteFideId "4153472"]
[BlackFideId "46674969"]
[WhiteElo "2684"]
[BlackElo "2514"]
[Result "1-0"]
[Round "7"]
[TimeControl "180+2"]
[Date "2023.07.25"]
[WhiteClock "0:01:15"]
[BlackClock "0:01:45"]
[Board "76"]

1. e4 {[%clk 0:02:59]}  c6 {[%clk 0:02:59]} 2. d4 {[%clk 0:02:59]}  d5 {[%clk 0:03:00]} 3. e5 {[%clk 0:03:00]}  Bf5 {[%clk 0:03:00]} 4. h4 {[%clk 0:03:01]}  e6 {[%clk 0:03:00]} 5. g4 {[%clk 0:03:00]}  Bg6 {[%clk 0:02:57]} 6. h5 {[%clk 0:03:00]}  Be4 {[%clk 0:02:57]} 7. f3 {[%clk 0:03:01]}  c5 {[%clk 0:02:57]} 8. fxe4 {[%clk 0:03:00]}  cxd4 {[%clk 0:02:57]} 9. Bg2 {[%clk 0:02:53]}  dxe4 {[%clk 0:02:54]} 10. Bxe4 {[%clk 0:02:50]}  Qa5+ {[%clk 0:02:51]} 11. Nd2 {[%clk 0:02:44]}  Qxe5 {[%clk 0:02:51]} 12. Qf3 {[%clk 0:02:21]}  Nf6 {[%clk 0:02:49]} 13. Ne2 {[%clk 0:02:20]}  Nbd7 {[%clk 0:02:41]} 14. Bxb7 {[%clk 0:02:15]}  Rb8 {[%clk 0:02:40]} 15. Bc6 {[%clk 0:02:16]}  Bb4 {[%clk 0:02:37]} 16. O-O {[%clk 0:01:54]}  Bd6 {[%clk 0:02:29]} 17. Qg2 {[%clk 0:01:39]}  Nxg4 {[%clk 0:02:24]} 18. Nc4 {[%clk 0:01:38]}  Qh2+ {[%clk 0:02:19]} 19. Qxh2 {[%clk 0:01:38]}  Bxh2+ {[%clk 0:02:20]} 20. Kh1 {[%clk 0:01:28]}  f5 {[%clk 0:01:59]} 21. Nxd4 {[%clk 0:01:19]}  Ke7 {[%clk 0:01:55]} 22. Bg5+ {[%clk 0:01:19]}  Ndf6 {[%clk 0:01:55]} 23. Rae1 {[%clk 0:01:18]}  Bg3 {[%clk 0:01:45]} 24. Nxf5+ {[%clk 0:01:15]} 1-0


[Site "https://www.chess.com"]

[Event "Titled Tuesday Blitz July 25 Early 2023"]
[White "Skliarov, Viktor"]
[Black "Salman, Pavel"]
[WhiteFideId "14106736"]
[BlackFideId "24153753"]
[WhiteElo "2674"]
[BlackElo "2498"]
[Result "0-1"]
[Round "7"]
[TimeControl "180+2"]
[Date "2023.07.25"]
[WhiteClock "0:00:19"]
[BlackClock "0:01:13"]
[Board "78"]

1. e4 {[%clk 0:03:00]}  g6 {[%clk 0:02:56]} 2. d4 {[%clk 0:03:00]}  Bg7 {[%clk 0:02:56]} 3. Nc3 {[%clk 0:03:01]}  c5 {[%clk 0:02:56]} 4. dxc5 {[%clk 0:03:00]}  Qc7 {[%clk 0:02:55]} 5. Nd5 {[%clk 0:02:53]}  Qxc5 {[%clk 0:02:50]} 6. Be3 {[%clk 0:02:47]}  Qa5+ {[%clk 0:02:50]} 7. c3 {[%clk 0:02:48]}  Nf6 {[%clk 0:02:49]} 8. Nxf6+ {[%clk 0:02:40]}  Bxf6 {[%clk 0:02:50]} 9. Bh6 {[%clk 0:02:40]}  d6 {[%clk 0:02:44]} 10. Bd3 {[%clk 0:02:30]}  Nc6 {[%clk 0:02:44]} 11. Nf3 {[%clk 0:02:22]}  Bg4 {[%clk 0:02:41]} 12. Qb3 {[%clk 0:01:57]}  Rb8 {[%clk 0:02:08]} 13. Bb5 {[%clk 0:01:41]}  Rc8 {[%clk 0:02:01]} 14. Bc4 {[%clk 0:01:32]}  Nd8 {[%clk 0:01:47]} 15. h3 {[%clk 0:01:08]}  Bxf3 {[%clk 0:01:46]} 16. gxf3 {[%clk 0:01:08]}  a6 {[%clk 0:01:35]} 17. Bd2 {[%clk 0:00:43]}  Qh5 {[%clk 0:01:32]} 18. Be2 {[%clk 0:00:41]}  O-O {[%clk 0:01:24]} 19. f4 {[%clk 0:00:39]}  Qh4 {[%clk 0:01:21]} 20. f5 {[%clk 0:00:30]}  Qxe4 {[%clk 0:01:16]} 21. O-O {[%clk 0:00:19]}  Qxe2 {[%clk 0:01:13]} 0-1


[Site "https://www.chess.com"]

[Event "Titled Tuesday Blitz July 25 Early 2023"]
[White "Yeritsyan, Hayk"]
[Black "Haug, Havard"]
[WhiteFideId "13307320"]
[BlackFideId "1547887"]
[WhiteElo "2482"]
[BlackElo "2655"]
[Result "0-1"]
[Round "7"]
[TimeControl "180+2"]
[Date "2023.07.25"]
[WhiteClock "0:00:08"]
[BlackClock "0:00:13"]
[Board "79"]

1. c4 {[%clk 0:03:00]}  e6 {[%clk 0:02:59]} 2. Nc3 {[%clk 0:03:00]}  d5 {[%clk 0:02:59]} 3. cxd5 {[%clk 0:03:00]}  exd5 {[%clk 0:03:00]} 4. e4 {[%clk 0:03:00]}  dxe4 {[%clk 0:02:58]} 5. Nxe4 {[%clk 0:03:01]}  Be7 {[%clk 0:02:54]} 6. Nf3 {[%clk 0:02:58]}  Nf6 {[%clk 0:02:54]} 7. Ng3 {[%clk 0:02:56]}  O-O {[%clk 0:02:54]} 8. Bc4 {[%clk 0:02:54]}  c5 {[%clk 0:02:50]} 9. O-O {[%clk 0:02:52]}  Nc6 {[%clk 0:02:51]} 10. b3 {[%clk 0:02:48]}  a6 {[%clk 0:02:47]} 11. Bb2 {[%clk 0:02:45]}  b5 {[%clk 0:02:46]} 12. Be2 {[%clk 0:02:45]}  Nd5 {[%clk 0:02:45]} 13. Ne4 {[%clk 0:02:43]}  Bf5 {[%clk 0:02:36]} 14. d3 {[%clk 0:02:37]}  Nf6 {[%clk 0:02:32]} 15. Ng3 {[%clk 0:02:34]}  Bg6 {[%clk 0:02:31]} 16. Rc1 {[%clk 0:02:34]}  Rc8 {[%clk 0:02:30]} 17. Qd2 {[%clk 0:02:32]}  Qd5 {[%clk 0:02:29]} 18. Rfe1 {[%clk 0:02:30]}  Rfd8 {[%clk 0:02:29]} 19. Bf1 {[%clk 0:02:23]}  Bxd3 {[%clk 0:02:20]} 20. Bxd3 {[%clk 0:02:11]}  Qxd3 {[%clk 0:02:21]} 21. Qxd3 {[%clk 0:02:12]}  Rxd3 {[%clk 0:02:22]} 22. Bxf6 {[%clk 0:02:11]}  gxf6 {[%clk 0:02:18]} 23. Nf5 {[%clk 0:01:53]}  Bf8 {[%clk 0:02:16]} 24. h4 {[%clk 0:01:47]}  Nb4 {[%clk 0:01:55]} 25. Re2 {[%clk 0:01:43]}  Nd5 {[%clk 0:01:50]} 26. Re4 {[%clk 0:01:39]}  Nc3 {[%clk 0:01:43]} 27. Rg4+ {[%clk 0:01:38]}  Kh8 {[%clk 0:01:43]} 28. Re1 {[%clk 0:01:27]}  Rd1 {[%clk 0:01:38]} 29. Rxd1 {[%clk 0:01:26]}  Nxd1 {[%clk 0:01:39]} 30. Nd2 {[%clk 0:01:22]}  Nc3 {[%clk 0:01:26]} 31. Kh2 {[%clk 0:01:20]}  Rd8 {[%clk 0:01:22]} 32. Nf1 {[%clk 0:01:14]}  Nxa2 {[%clk 0:01:18]} 33. N1g3 {[%clk 0:01:12]}  Bd6 {[%clk 0:00:49]} 34. f4 {[%clk 0:01:08]}  c4 {[%clk 0:00:42]} 35. bxc4 {[%clk 0:01:07]}  bxc4 {[%clk 0:00:38]} 36. Ne4 {[%clk 0:01:01]}  c3 {[%clk 0:00:29]} 37. Nfxd6 {[%clk 0:00:54]}  Rxd6 {[%clk 0:00:23]} 38. Nxd6 {[%clk 0:00:53]}  h5 {[%clk 0:00:24]} 39. Rg3 {[%clk 0:00:22]}  c2 {[%clk 0:00:23]} 40. Ne4 {[%clk 0:00:21]}  c1=Q {[%clk 0:00:21]} 41. Nxf6 {[%clk 0:00:21]}  Qxf4 {[%clk 0:00:20]} 42. Nxh5 {[%clk 0:00:21]}  Qxh4+ {[%clk 0:00:20]} 43. Rh3 {[%clk 0:00:21]}  Qd4 {[%clk 0:00:17]} 44. Ng3+ {[%clk 0:00:14]}  Kg8 {[%clk 0:00:17]} 45. Rh5 {[%clk 0:00:13]}  Nb4 {[%clk 0:00:14]} 46. Kh3 {[%clk 0:00:13]}  Nd3 {[%clk 0:00:13]} 47. Rh4 {[%clk 0:00:08]}  Nf2+ {[%clk 0:00:13]} 0-1


[Site "https://www.chess.com"]

[Event "Titled Tuesday Blitz July 25 Early 2023"]
[White "Arat, Ufuk Sezen"]
[Black "Estrada Nieto, Julian"]
[WhiteFideId "6309089"]
[BlackFideId "5101018"]
[WhiteElo "2623"]
[BlackElo "2464"]
[Result "1-0"]
[Round "7"]
[TimeControl "180+2"]
[Date "2023.07.25"]
[WhiteClock "0:00:24"]
[BlackClock "0:00:14"]
[Board "81"]

1. e4 {[%clk 0:02:58]}  e5 {[%clk 0:02:57]} 2. Nf3 {[%clk 0:02:58]}  Nc6 {[%clk 0:02:57]} 3. Bb5 {[%clk 0:02:58]}  a6 {[%clk 0:02:56]} 4. Ba4 {[%clk 0:02:58]}  Nf6 {[%clk 0:02:55]} 5. O-O {[%clk 0:02:58]}  Be7 {[%clk 0:02:54]} 6. Re1 {[%clk 0:02:58]}  b5 {[%clk 0:02:54]} 7. Bb3 {[%clk 0:02:58]}  d6 {[%clk 0:02:55]} 8. c3 {[%clk 0:02:50]}  O-O {[%clk 0:02:54]} 9. h3 {[%clk 0:02:49]}  Bb7 {[%clk 0:02:55]} 10. d4 {[%clk 0:02:48]}  Re8 {[%clk 0:02:54]} 11. d5 {[%clk 0:02:44]}  Nb8 {[%clk 0:02:51]} 12. Bg5 {[%clk 0:02:42]}  Nbd7 {[%clk 0:02:50]} 13. Nbd2 {[%clk 0:02:41]}  Nc5 {[%clk 0:02:41]} 14. Bxf6 {[%clk 0:02:37]}  Bxf6 {[%clk 0:02:40]} 15. Bc2 {[%clk 0:02:38]}  c6 {[%clk 0:02:37]} 16. b4 {[%clk 0:02:25]}  Nd7 {[%clk 0:02:34]} 17. dxc6 {[%clk 0:02:24]}  Bxc6 {[%clk 0:02:34]} 18. Nb3 {[%clk 0:02:25]}  Nb6 {[%clk 0:02:21]} 19. Na5 {[%clk 0:02:23]}  Rc8 {[%clk 0:02:20]} 20. Qd3 {[%clk 0:02:09]}  Ba8 {[%clk 0:02:02]} 21. Rad1 {[%clk 0:02:07]}  Nc4 {[%clk 0:02:00]} 22. Nxc4 {[%clk 0:02:03]}  Rxc4 {[%clk 0:02:00]} 23. Bb3 {[%clk 0:01:58]}  Rc6 {[%clk 0:01:58]} 24. Bd5 {[%clk 0:01:58]}  Rb6 {[%clk 0:01:57]} 25. c4 {[%clk 0:01:52]}  bxc4 {[%clk 0:01:55]} 26. Qxc4 {[%clk 0:01:52]}  Bxd5 {[%clk 0:01:44]} 27. Rxd5 {[%clk 0:01:53]}  Qb8 {[%clk 0:01:43]} 28. a3 {[%clk 0:01:46]}  Rc8 {[%clk 0:01:42]} 29. Qd3 {[%clk 0:01:44]}  h6 {[%clk 0:01:34]} 30. Rd1 {[%clk 0:01:44]}  Be7 {[%clk 0:01:33]} 31. Nd2 {[%clk 0:01:43]}  Rbc6 {[%clk 0:01:32]} 32. Nf1 {[%clk 0:01:17]}  Rc3 {[%clk 0:01:30]} 33. Qxa6 {[%clk 0:01:16]}  Qa8 {[%clk 0:01:25]} 34. Qxa8 {[%clk 0:01:01]}  Rxa8 {[%clk 0:01:25]} 35. Ne3 {[%clk 0:01:02]}  Rcxa3 {[%clk 0:01:23]} 36. Nf5 {[%clk 0:00:57]}  Bf8 {[%clk 0:01:22]} 37. Nxd6 {[%clk 0:00:53]}  Bxd6 {[%clk 0:01:17]} 38. Rxd6 {[%clk 0:00:53]}  Rb3 {[%clk 0:01:15]} 39. Rb6 {[%clk 0:00:49]}  Ra4 {[%clk 0:01:08]} 40. Rd8+ {[%clk 0:00:49]}  Kh7 {[%clk 0:01:08]} 41. Rdb8 {[%clk 0:00:45]}  Rb1+ {[%clk 0:01:02]} 42. Kh2 {[%clk 0:00:45]}  h5 {[%clk 0:01:00]} 43. R8b7 {[%clk 0:00:44]}  Rb2 {[%clk 0:00:48]} 44. Rxf7 {[%clk 0:00:39]}  Rbxb4 {[%clk 0:00:44]} 45. Rxb4 {[%clk 0:00:39]}  Rxb4 {[%clk 0:00:44]} 46. f3 {[%clk 0:00:39]}  Kg6 {[%clk 0:00:43]} 47. Rf5 {[%clk 0:00:38]}  Rb5 {[%clk 0:00:41]} 48. Kg3 {[%clk 0:00:38]}  Ra5 {[%clk 0:00:37]} 49. Kh4 {[%clk 0:00:38]}  Ra2 {[%clk 0:00:33]} 50. Rg5+ {[%clk 0:00:32]}  Kf6 {[%clk 0:00:30]} 51. Kxh5 {[%clk 0:00:33]}  Ra8 {[%clk 0:00:19]} 52. Rf5+ {[%clk 0:00:31]}  Ke6 {[%clk 0:00:19]} 53. Kg6 {[%clk 0:00:32]}  Ra7 {[%clk 0:00:19]} 54. g4 {[%clk 0:00:28]}  Rb7 {[%clk 0:00:18]} 55. h4 {[%clk 0:00:28]}  Ra7 {[%clk 0:00:18]} 56. h5 {[%clk 0:00:29]}  Rb7 {[%clk 0:00:18]} 57. g5 {[%clk 0:00:29]}  Ra7 {[%clk 0:00:18]} 58. h6 {[%clk 0:00:24]}  gxh6 {[%clk 0:00:14]} 59. gxh6 {[%clk 0:00:24]} 1-0


[Site "https://www.chess.com"]

[Event "Titled Tuesday Blitz July 25 Early 2023"]
[White "Arabidze, Meri"]
[Black "Devaev, Alexander"]
[WhiteFideId "13604040"]
[BlackFideId "4169395"]
[WhiteElo "2611"]
[BlackElo "2463"]
[Result "1-0"]
[Round "7"]
[TimeControl "180+2"]
[Date "2023.07.25"]
[WhiteClock "0:00:21"]
[BlackClock "0:00:00"]
[Board "82"]

1. Nf3 {[%clk 0:02:56]}  Nf6 {[%clk 0:02:59]} 2. b3 {[%clk 0:02:56]}  c5 {[%clk 0:02:59]} 3. Bb2 {[%clk 0:02:56]}  Nc6 {[%clk 0:03:00]} 4. c4 {[%clk 0:02:55]}  e6 {[%clk 0:03:00]} 5. e3 {[%clk 0:02:54]}  Be7 {[%clk 0:02:59]} 6. Be2 {[%clk 0:02:52]}  b6 {[%clk 0:02:59]} 7. O-O {[%clk 0:02:52]}  Bb7 {[%clk 0:03:00]} 8. d3 {[%clk 0:02:49]}  O-O {[%clk 0:02:59]} 9. Nc3 {[%clk 0:02:48]}  a6 {[%clk 0:02:59]} 10. Re1 {[%clk 0:02:40]}  Rc8 {[%clk 0:02:57]} 11. e4 {[%clk 0:02:40]}  d6 {[%clk 0:02:53]} 12. Bf1 {[%clk 0:02:37]}  Qc7 {[%clk 0:02:51]} 13. d4 {[%clk 0:02:32]}  cxd4 {[%clk 0:02:51]} 14. Nxd4 {[%clk 0:02:33]}  Rfe8 {[%clk 0:02:42]} 15. Rc1 {[%clk 0:02:33]}  Ne5 {[%clk 0:02:42]} 16. f4 {[%clk 0:02:16]}  Ned7 {[%clk 0:02:41]} 17. f5 {[%clk 0:02:07]}  Bf8 {[%clk 0:02:40]} 18. Bd3 {[%clk 0:02:00]}  Ne5 {[%clk 0:02:37]} 19. Bf1 {[%clk 0:01:56]}  Ba8 {[%clk 0:02:34]} 20. Qd2 {[%clk 0:01:52]}  Qc5 {[%clk 0:02:29]} 21. Kh1 {[%clk 0:01:51]}  Neg4 {[%clk 0:02:23]} 22. h3 {[%clk 0:01:47]}  Ne5 {[%clk 0:02:23]} 23. Qe3 {[%clk 0:01:21]}  h6 {[%clk 0:02:20]} 24. Be2 {[%clk 0:01:13]}  Nc6 {[%clk 0:01:37]} 25. Na4 {[%clk 0:01:11]}  Nxd4 {[%clk 0:01:05]} 26. Nxc5 {[%clk 0:01:07]}  Nxe2 {[%clk 0:01:06]} 27. Qxe2 {[%clk 0:00:59]}  Rxc5 {[%clk 0:00:31]} 28. Bxf6 {[%clk 0:00:59]}  gxf6 {[%clk 0:00:31]} 29. Qf2 {[%clk 0:00:53]}  a5 {[%clk 0:00:25]} 30. a3 {[%clk 0:00:52]}  Re5 {[%clk 0:00:21]} 31. fxe6 {[%clk 0:00:45]}  R8xe6 {[%clk 0:00:17]} 32. Qxb6 {[%clk 0:00:34]}  Bxe4 {[%clk 0:00:17]} 33. Rxe4 {[%clk 0:00:31]}  Rxe4 {[%clk 0:00:17]} 34. Qxa5 {[%clk 0:00:31]}  h5 {[%clk 0:00:15]} 35. Qxh5 {[%clk 0:00:28]}  R4e5 {[%clk 0:00:10]} 36. Qf3 {[%clk 0:00:25]}  Bh6 {[%clk 0:00:10]} 37. Rf1 {[%clk 0:00:24]}  Re3 {[%clk 0:00:02]} 38. Qg4+ {[%clk 0:00:24]}  Kh7 {[%clk 0:00:03]} 39. Qf5+ {[%clk 0:00:23]}  Kg7 {[%clk 0:00:03]} 40. Qg4+ {[%clk 0:00:23]}  Kh7 {[%clk 0:00:03]} 41. a4 {[%clk 0:00:21]}  Rxb3 {[%clk 0:00:00]} 42. a5 {[%clk 0:00:21]} 1-0


[Site "https://www.chess.com"]